bitfinex-derivatives/quotes_SOLF0:USTF0_20250125
["timestamp","ask_amount","ask_price","bid_price","bid_amount"]
[1737846865314,8.35336577,259.52,259.39,0.02889625]
[1737846865914,3.8549,259.45,259.39,0.02889625]
[1737846866510,8.35336577,259.52,259.39,0.02889625]
[1737846866709,3.855,259.44,259.39,0.02889625]
[1737846867114,8.35336577,259.52,259.39,0.02889625]
[1737846867314,3.8549,259.45,259.39,0.02889625]
[1737846868209,8.35336577,259.52,259.39,0.02889625]
[1737846868407,3.855,259.44,259.39,0.02889625]
[1737846868607,8.35336577,259.52,259.39,0.02889625]
[1737846868808,3.8544,259.48,259.39,0.02889625]
[1737846869014,8.35336577,259.56,259.38,8.35336577]
[1737846869212,8.35336577,259.47,259.41,7.244e-05]
[1737846869417,8.35336577,259.43,259.26,56.51879272]
[1737846869712,8.35336577,259.39,259.26,50.68792695]
[1737846870416,0.02649543,259.35,259.3,0.02652362]
[1737846870611,8.35336577,259.44,259.26,59.04129272]
[1737846870816,0.02474241,259.35,259.3,0.02688958]
[1737846876021,3.8568,259.33,259.3,0.02688958]
[1737846876221,0.02474241,259.35,259.3,0.02688958]
[1737846877116,8.35336577,259.48,259.3,8.38025535]
[1737846877320,8.35336577,259.48,259.31,1.2329]
[1737846878027,3.8554,259.42,259.34,3.8564]
[1737846878227,3.8554,259.42,259.37,0.02731124]
[1737846878936,8.35336577,259.48,259.37,0.02731124]
[1737846879124,3.8555,259.41,259.37,0.02731124]
[1737846879319,8.35336577,259.48,259.37,0.02731124]
[1737846879525,3.8549,259.45,259.37,0.02731124]
[1737846879726,8.35336577,259.48,259.37,0.02731124]
[1737846880127,3.8549,259.45,259.37,0.02731124]
[1737846880325,8.35336577,259.48,259.37,0.02731124]
[1737846881225,3.8555,259.41,259.37,0.02731124]
[1737846884932,8.35336577,259.48,259.37,0.02731124]
[1737846885819,3.8553,259.42,259.37,0.02731124]
[1737846886922,3.8554,259.41,259.37,0.02731124]
[1737846888432,3.8552,259.43,259.37,0.02731124]
[1737846890230,8.35336577,259.48,259.37,0.02731124]
[1737846892134,3.8554,259.42,259.37,0.02731124]
[1737846892534,8.35336577,259.48,259.37,0.02731124]
[1737846892734,3.855,259.44,259.37,0.02731124]
[1737846892927,8.35336577,259.52,259.37,0.02731124]
[1737846893133,8.35336577,259.52,259.38,8.35336577]
[1737846893435,8.35336577,259.52,259.42,0.02550054]
[1737846893834,3.8545,259.48,259.42,3.88080054]
[1737846894335,3.8542,259.49,259.42,3.88080054]
[1737846894635,8.35336577,259.52,259.42,3.88080054]
[1737846895435,8.35336577,259.52,259.42,0.02550054]
[1737846895835,3.8542,259.49,259.42,0.02550054]
[1737846896034,8.35336577,259.52,259.42,0.02550054]
[1737846897044,3.8546,259.47,259.42,0.02550054]
[1737846897336,8.35336577,259.52,259.42,0.02550054]
[1737846897537,3.855,259.44,259.42,0.02550054]
[1737846899039,3.8551,259.43,259.42,0.02550054]
[1737846903945,8.35336577,259.48,259.42,0.02550054]
[1737846904444,3.8551,259.43,259.42,0.02550054]
[1737846906245,3.8548,259.45,259.42,0.02550054]
[1737846906748,3.8545,259.48,259.42,0.02550054]
[1737846907343,3.8546,259.47,259.42,0.02550054]
[1737846908440,3.8551,259.43,259.42,0.02550054]
[1737846909744,3.8562,259.36,259.28,2.6499]
[1737846910053,8.35336577,259.4,259.28,2.6499]
[1737846910347,3.8567,259.33,259.26,48.16542695]
[1737846910649,8.35336577,259.4,259.26,48.16542695]
[1737846910846,0.02862862,259.32,259.27,0.02786141]
[1737846914249,1.2818,259.43,259.3,8.35336577]
[1737846914639,3.8561,259.37,259.3,12.21036577]
[1737846914839,1.2818,259.43,259.3,8.35336577]
[1737846915450,3.8563,259.36,259.34,0.02434209]
[1737846916745,12.20966577,259.36,259.22,8.35336577]
[1737846916952,3.8571,259.3,259.22,8.35336577]
[1737846917751,8.35336577,259.36,259.22,8.35336577]
[1737846918049,0.02831062,259.29,259.23,0.02485954]
[1737846919753,9.66416577,259.5,259.26,8.35336577]
[1737846920052,3.8556,259.4,259.32,8.35336577]
[1737846920453,8.35336577,259.46,259.28,8.35336577]
[1737846920947,8.35336577,259.46,259.34,0.02740121]
[1737846921449,8.35336577,259.42,259.34,0.02740121]
[1737846923056,3.8556,259.4,259.34,0.02740121]
[1737846923255,8.35336577,259.48,259.34,0.02740121]
[1737846924555,3.8556,259.4,259.34,0.02740121]
[1737846925654,3.855,259.44,259.34,0.02740121]
[1737846926558,8.35336577,259.48,259.34,0.02740121]
[1737846926754,8.35336577,259.48,259.34,8.38076698]
[1737846926955,1.2288,259.51,259.38,8.35336577]
[1737846927152,3.8544,259.49,259.41,3.8554]
[1737846927353,8.35336577,259.52,259.38,8.35336577]
[1737846927354,8.35336577,259.56,259.42,0.02630715]
[1737846927663,8.35336577,259.56,259.38,8.35336577]
[1737846927956,8.35336577,259.56,259.46,0.02481023]
[1737846928160,3.8539,259.52,259.46,0.02481023]
[1737846929553,8.35336577,259.6,259.46,8.378176]
[1737846929753,15.91955922,259.62,259.46,8.35336577]
[1737846929955,15.91955922,259.62,259.5,0.0257103]
[1737846930754,15.91955922,259.62,259.5,8.37907607]
[1737846930957,8.35336577,259.68,259.54,8.35336577]
[1737846931349,3.8515,259.68,259.58,0.02888381]
[1737846931758,15.91955922,259.71,259.58,8.38224958]
[1737846932061,15.91955922,259.71,259.63,3.852]
[1737846932258,15.91955922,259.71,259.62,8.35336577]
[1737846932555,15.91955922,259.71,259.64,0.02838214]
[1737846933153,42.45215793,259.72,259.64,0.02838214]
[1737846933154,3.8508,259.73,259.64,0.02838214]
[1737846934158,3.8505,259.75,259.64,0.02838214]
[1737846934757,3.8506,259.74,259.64,3.88038214]
[1737846935058,14.62301277,259.79,259.64,3.88038214]
[1737846935354,3.8507,259.73,259.64,0.02838214]
[1737846936060,3.8507,259.73,259.64,3.88038214]
[1737846937559,3.8507,259.73,259.65,3.8518]
[1737846938067,3.8501,259.77,259.64,0.02838214]
[1737846938355,3.8501,259.77,259.61,13.32751277]
[1737846938562,3.8501,259.77,259.68,0.0247913]
[1737846938757,3.8501,259.77,259.7,3.8511]
[1737846938963,13.32751277,259.83,259.68,0.0247913]
[1737846939462,3.8503,259.76,259.68,3.8760913]
[1737846940160,13.32751277,259.83,259.68,0.0247913]
[1737846940356,13.32751277,259.79,259.68,0.0247913]
[1737846940557,13.32751277,259.79,259.6,1.2938]
[1737846940756,3.8512,259.7,259.6,1.2938]
[1737846940959,3.8512,259.7,259.67,0.02851245]
[1737846942758,3.8504,259.75,259.67,0.02851245]
[1737846942957,1.2937,259.78,259.67,0.02851245]
[1737846943564,13.32751277,259.75,259.67,0.02851245]
[1737846943765,3.8514,259.69,259.67,0.02851245]
[1737846946164,2.5684,259.77,259.67,0.02851245]
[1737846946766,3.851,259.71,259.67,0.02851245]
[1737846947668,2.5684,259.77,259.67,0.02851245]
[1737846947873,3.8513,259.69,259.67,0.02851245]
[1737846948670,3.8514,259.68,259.67,0.02851245]
[1737846948870,13.32751277,259.8,259.67,0.02851245]
[1737846949072,13.32751277,259.8,259.56,13.32751277]
[1737846949373,13.32751277,259.76,259.71,7.348e-05]
[1737846949569,2.5154,259.75,259.56,17.18061277]
[1737846950366,3.852,259.64,259.56,17.18061277]
[1737846950566,3.852,259.64,259.63,0.02482748]
[1737846950771,0.02483592,259.66,259.55,5.1144]
[1737846951071,0.02483592,259.66,259.61,0.02728876]
[1737846951671,3.8521,259.64,259.61,0.02728876]
[1737846953268,0.02483592,259.66,259.61,0.02728876]
[1737846953969,0.02483592,259.66,259.61,3.87968876]
[1737846955073,0.02483592,259.66,259.62,3.8523]
[1737846955963,0.02483592,259.66,259.61,3.87968876]
[1737846958579,0.02483592,259.66,259.63,3.8521]
[1737846958777,0.02483592,259.66,259.61,0.02728876]
[1737846959071,0.02483592,259.66,259.64,3.8519]
[1737846961173,0.02483592,259.66,259.65,3.8519]
[1737846961378,3.8504,259.75,259.63,8.3302936]
[1737846961574,8.3302936,259.8,259.67,3.8515]
[1737846961769,8.3302936,259.8,259.63,8.3302936]
[1737846962278,8.3302936,259.8,259.66,3.8517]
[1737846962577,8.3302936,259.8,259.69,0.02941174]
[1737846963182,3.8532,259.56,259.5,8.3302936]
[1737846963479,3.8532,259.56,259.45,8.3302936]
[1737846963679,8.3302936,259.62,259.46,0.70781932]
[1737846963975,8.3302936,259.66,259.49,8.3302936]
[1737846964379,3.8532,259.56,259.55,0.02534495]
[1737846966981,3.8532,259.56,259.45,8.3302936]
[1737846966982,0.02678502,259.6,259.45,8.3302936]
[1737846967284,3.8539,259.52,259.42,3.7349]
[1737846968185,0.0244976,259.5,259.44,0.02494245]
[1737846968777,0.0244976,259.5,259.45,8.3302936]
[1737846969077,0.0244976,259.5,259.47,3.8544]
[1737846969282,0.0244976,259.5,259.45,8.3302936]
[1737846969587,0.0244976,259.5,259.44,0.02494245]
[1737846970288,3.8543,259.49,259.44,0.02494245]
[1737846970586,0.0244976,259.5,259.44,0.02494245]
[1737846970787,3.8544,259.48,259.44,0.02494245]
[1737846972188,0.0244976,259.5,259.44,0.02494245]
[1737846972387,3.8547,259.46,259.44,0.02494245]
[1737846977494,3.8548,259.45,259.44,0.02494245]
[1737846979996,3.8556,259.4,259.33,3.8565]
[1737846980789,8.3302936,259.5,259.32,8.3302936]
[1737846980991,8.3302936,259.46,259.28,8.3302936]
[1737846981198,8.3302936,259.42,259.27,2.6137]
[1737846982297,8.3302936,259.42,259.27,6.4711]
[1737846982500,0.02717945,259.37,259.32,0.02466517]
[1737846983496,0.02717945,259.37,259.33,3.8566]
[1737846984295,0.02717945,259.37,259.32,0.02466517]
[1737846985998,0.02717945,259.37,259.33,3.8566]
[1737846987196,0.02717945,259.37,259.32,0.02466517]
[1737846987601,0.02717945,259.37,259.32,3.88136517]
[1737846987904,0.02717945,259.37,259.32,0.02466517]
[1737846988104,0.02717945,259.37,259.35,3.8563]
[1737846991304,0.02717945,259.37,259.34,8.3302936]
[1737846991505,3.88327945,259.37,259.32,0.02466517]
[1737846991902,0.02717945,259.37,259.32,0.02466517]
[1737846992098,3.8562,259.36,259.32,0.02466517]
[1737846995006,3.88317945,259.37,259.32,3.88136517]
[1737846995405,0.02717945,259.37,259.34,8.3302936]
[1737846995707,3.8548,259.46,259.34,8.3302936]
[1737846995906,3.8548,259.46,259.38,8.3302936]
[1737846996209,3.8548,259.46,259.41,3.8554]
[1737846996404,8.3302936,259.52,259.38,8.3302936]
[1737846996602,3.8542,259.5,259.44,3.855]
[1737846996803,0.02932837,259.48,259.42,8.35846326]
[1737846997507,0.02932837,259.48,259.46,3.8546]
[1737846998109,0.02932837,259.48,259.44,3.8549]
[1737846998412,0.02932837,259.48,259.42,0.02816966]
[1737847000104,3.8551,259.44,259.42,0.02816966]
[1737847000309,0.02932837,259.48,259.42,0.02816966]
[1737847001908,3.8549,259.45,259.42,0.02816966]
[1737847002813,3.855,259.44,259.42,0.02816966]
[1737847006721,8.35962197,259.48,259.42,0.02816966]
[1737847006914,3.8551,259.43,259.42,0.02816966]
[1737847007820,3.8548,259.46,259.42,0.02816966]
[1737847009114,3.8548,259.45,259.42,0.02816966]
[1737847012024,3.855,259.44,259.42,0.02816966]
[1737847012924,3.8551,259.43,259.42,0.02816966]
[1737847013224,8.35962197,259.48,259.33,2.6274]
[1737847013225,8.3302936,259.44,259.33,2.6274]
[1737847014117,3.8559,259.38,259.33,2.6274]
[1737847014322,3.8559,259.38,259.36,0.0250334]
[1737847015225,0.02535608,259.41,259.36,0.0250334]
[1737847015425,3.856,259.37,259.36,0.0250334]
[1737847018629,3.856,259.37,259.24,1.3123]
[1737847018630,3.8586,259.2,259.09,133.10040481]
[1737847018826,8.3302936,259.28,259.14,17.58528036]
[1737847019129,8.3302936,259.28,259.11,3.8598]
[1737847019426,3.8587,259.19,259.1,10.8343936]
[1737847019826,0.0257067,259.17,259.12,0.02471586]
[1737847022230,8.3302936,259.32,259.14,8.3302936]
[1737847022627,3.8579,259.25,259.14,8.3302936]
[1737847023031,8.3302936,259.32,259.14,8.3302936]
[1737847023330,0.02679306,259.26,259.2,0.02611338]
[1737847023723,3.8585,259.21,259.2,0.02611338]
[1737847025237,3.859,259.17,259.1,2.5041]
[1737847026433,0.02787478,259.16,259.11,0.02908276]
[1737847028339,0.02787478,259.16,259.12,3.8597]
[1737847029836,0.02787478,259.16,259.11,0.02908276]
[1737847033140,3.8596,259.14,259.11,0.02908276]
[1737847033339,0.02787478,259.16,259.11,0.02908276]
[1737847033744,3.8595,259.14,259.11,0.02908276]
[1737847036741,0.02787478,259.16,259.11,0.02908276]
[1737847038240,3.8595,259.14,259.11,0.02908276]
[1737847040046,0.02787478,259.16,259.11,0.02908276]
[1737847040347,8.35816838,259.16,259.11,0.02908276]
[1737847041147,3.8597,259.12,259.11,0.02908276]
[1737847042047,3.8595,259.14,259.11,0.02908276]
[1737847042247,8.35816838,259.16,259.11,0.02908276]
[1737847043249,8.3302936,259.12,259.11,0.02908276]
[1737847044250,12.1899936,259.12,259.11,0.02908276]
[1737847046141,3.8603,259.08,259.0,3.8615]
[1737847047251,0.02832055,259.07,259.01,0.0293288]
[1737847048453,0.02832055,259.07,259.06,3.8606]
[1737847051554,8.3302936,259.2,259.04,8.3302936]
[1737847051749,8.3302936,259.2,259.05,2.4971]
[1737847052353,3.8585,259.21,259.14,3.8594]
[1737847052554,0.02593252,259.15,259.1,0.02690498]
[1737847052754,8.3302936,259.24,259.1,0.02690498]
[1737847052952,3.8582,259.23,259.1,0.02690498]
[1737847053651,8.3302936,259.24,259.1,0.02690498]
[1737847053853,0.02652474,259.2,259.1,0.02690498]
[1737847054052,0.02652474,259.2,259.12,8.3302936]
[1737847054249,0.02652474,259.2,259.18,3.8588]
[1737847054455,8.3302936,259.28,259.12,8.3302936]
[1737847055056,3.8575,259.27,259.21,3.8583]
[1737847055559,3.88314183,259.27,259.21,3.88597798]
[1737847055761,0.02564183,259.27,259.21,3.88597798]
[1737847056867,0.02564183,259.27,259.25,3.8577]
[1737847061364,8.3302936,259.36,259.28,3.8572]
[1737847061669,3.857,259.31,259.22,1.3142]
[1737847061865,3.857,259.31,259.23,3.858]
[1737847062368,3.857,259.31,259.22,1.3142]
[1737847062569,0.02967207,259.3,259.24,0.02436025]
[1737847063472,3.8578,259.25,259.24,0.02436025]
[1737847069075,8.3302936,259.28,259.13,2.5857]
[1737847069275,8.3302936,259.24,259.13,2.5857]
[1737847070076,8.3302936,259.24,259.08,5.1173]
[1737847070377,0.02933129,259.21,259.16,0.02671564]
[1737847070776,3.859,259.17,259.16,0.02671564]
[1737847081286,3.859,259.17,259.16,0.00127585]
[1737847084690,3.8606,259.07,259.04,1.2574]
[1737847086589,0.02733672,259.08,259.04,1.2574]
[1737847087088,0.02733672,259.08,259.06,5.35636182]
[1737847087690,0.02733672,259.08,259.06,9.21696182]
[1737847087888,9.21546182,259.16,259.06,5.35636182]
[1737847088091,9.21546182,259.16,259.08,5.35636182]
[1737847088490,3.8593,259.15,259.08,9.21666182]
[1737847088987,0.02957469,259.14,259.09,0.0243849]
[1737847089186,0.02957469,259.14,259.1,5.35636182]
[1737847089388,3.9042,259.28,259.12,5.35636182]
[1737847089690,8.3618454,259.24,259.1,1.2799]
[1737847089891,8.3618454,259.24,259.12,3.8596]
[1737847090192,8.3618454,259.24,259.11,1.2362]
[1737847090589,0.02571143,259.2,259.15,0.02496484]
[1737847093891,3.859,259.17,259.15,0.02496484]
[1737847094792,3.8591,259.16,259.15,0.02496484]
[1737847095291,3.8591,259.16,259.04,1.2574]
[1737847095292,3.8606,259.07,259.04,1.2574]
[1737847095491,8.3618454,259.16,259.04,1.2574]
[1737847096190,8.3618454,259.12,258.97,2.5546]
[1737847096491,0.02822452,259.07,259.02,0.02652765]
[1737847097096,3.8607,259.06,259.02,0.02652765]
[1737847097294,0.02822452,259.07,259.02,0.02652765]
[1737847097889,3.861,259.04,259.02,0.02652765]
[1737847099598,12.2228454,259.04,259.02,0.02652765]
[1737847100498,3.8624,258.95,258.9,1.3154]
[1737847101696,3.88930483,258.95,258.9,1.34334244]
[1737847102100,0.02690483,258.95,258.9,1.34334244]
[1737847102295,0.02690483,258.95,258.9,0.02794244]
[1737847105994,0.02690483,258.95,258.91,3.8628]
[1737847106500,0.02690483,258.95,258.9,0.02794244]
[1737847106701,3.8626,258.93,258.9,0.02794244]
[1737847107199,3.8625,258.94,258.9,0.02794244]
[1737847107401,0.02690483,258.95,258.9,0.02794244]
[1737847107792,3.8625,258.94,258.9,0.02794244]
[1737847108001,0.02690483,258.95,258.9,0.02794244]
[1737847108695,3.8625,258.94,258.9,0.02794244]
[1737847110703,0.02690483,258.95,258.9,0.02794244]
[1737847111902,12.25115023,258.95,258.9,0.02794244]
[1737847112303,8.38875023,258.95,258.9,0.02794244]
[1737847114207,3.8629,258.91,258.9,0.02794244]
[1737847117708,9.22703302,258.91,258.9,0.02794244]
[1737847119307,16.94413302,258.91,258.64,5.36413302]
[1737847119507,5.36413302,258.73,258.67,2.651]
[1737847120408,5.36413302,258.7,258.67,2.67641113]
[1737847121312,9.23023302,258.7,258.67,0.02541113]
[1737847121710,8.39589789,258.71,258.67,0.02541113]
[1737847122411,3.8663,258.69,258.67,0.02541113]
[1737847125912,8.39589789,258.71,258.67,0.02541113]
[1737847126809,3.866,258.7,258.67,0.02541113]
[1737847127013,8.39589789,258.71,258.67,0.02541113]
[1737847131011,0.02613457,258.73,258.67,3.89181113]
[1737847133314,0.02613457,258.73,258.67,0.02541113]
[1737847133716,8.39589789,258.7,258.67,0.02541113]
[1737847135011,3.8662,258.69,258.67,0.02541113]
[1737847135215,8.39589789,258.7,258.67,0.02541113]
[1737847135819,19.97589789,258.7,258.5,8.39589789]
[1737847136022,8.39589789,258.6,258.41,8.39589789]
[1737847136218,8.39589789,258.6,258.42,0.71071187]
[1737847136915,8.39589789,258.6,258.47,3.8694]
[1737847136916,3.868,258.57,258.47,3.8694]
[1737847137120,0.02752087,258.54,258.48,0.02798249]
[1737847141220,0.02752087,258.54,258.52,3.8686]
[1737847141523,8.39589789,258.68,258.53,12.33539789]
[1737847142231,8.39589789,258.68,258.54,0.71045802]
[1737847142431,0.02967463,258.63,258.6,3.8674]
[1737847142622,0.02967463,258.63,258.58,0.0263537]
[1737847143533,0.02967463,258.63,258.59,3.8676]
[1737847143938,8.39589789,258.6,258.58,0.0263537]
[1737847146234,0.02967463,258.63,258.58,0.0263537]
[1737847147338,0.02967463,258.63,258.58,3.8940537]
[1737847147539,0.02967463,258.63,258.58,0.0263537]
[1737847147936,0.02967463,258.63,258.6,3.8675]
[1737847148337,0.02967463,258.63,258.58,0.0263537]
[1737847149244,3.89677463,258.63,258.58,0.0263537]
[1737847150445,0.02967463,258.63,258.58,0.0263537]
[1737847151041,0.02967463,258.63,258.59,3.8676]
[1737847151243,0.02967463,258.63,258.58,0.0263537]
[1737847151947,0.02967463,258.63,258.6,3.8675]
[1737847153445,0.02967463,258.63,258.61,3.8673]
[1737847154147,0.02967463,258.63,258.62,3.8672]
[1737847155241,0.02967463,258.63,258.58,0.0263537]
[1737847156147,0.02967463,258.63,258.6,3.8675]
[1737847157246,0.02967463,258.63,258.58,0.0263537]
[1737847158244,0.02967463,258.63,258.62,3.8672]
[1737847160447,0.02967463,258.63,258.6,3.8674]
[1737847161445,0.02967463,258.63,258.62,3.8672]
[1737847162750,0.02967463,258.63,258.61,3.8673]
[1737847163050,0.02967463,258.63,258.58,0.0263537]
[1737847163651,0.02967463,258.63,258.62,3.8672]
[1737847166955,0.02967463,258.63,258.58,0.0263537]
[1737847168051,0.02967463,258.63,258.59,3.8676]
[1737847170354,0.02967463,258.63,258.62,3.8672]
[1737847174860,0.02967463,258.63,258.61,3.8673]
[1737847175262,0.02967463,258.63,258.58,3.8941537]
[1737847175459,0.02967463,258.63,258.58,0.0263537]
[1737847175659,3.8655,258.74,258.62,8.39589789]
[1737847175862,3.8655,258.74,258.68,3.8662]
[1737847176263,3.8655,258.74,258.63,2.5923]
[1737847176464,3.8655,258.74,258.69,3.8661]
[1737847176967,3.89125756,258.74,258.69,3.89566362]
[1737847178366,0.02575756,258.74,258.69,3.89566362]
[1737847178559,0.02575756,258.74,258.69,0.02956362]
[1737847178964,3.89125756,258.74,258.69,0.02956362]
[1737847179161,0.02575756,258.74,258.69,0.02956362]
[1737847185772,5.37105258,258.73,258.69,0.02956362]
[1737847186775,0.02575756,258.74,258.69,0.02956362]
[1737847187574,0.02575756,258.74,258.7,3.866]
[1737847188475,5.37105258,258.83,258.72,5.37105258]
[1737847188678,5.37105258,258.86,258.78,5.37105258]
[1737847188872,5.37105258,258.84,258.76,5.37105258]
[1737847189079,5.37105258,258.82,258.74,5.37105258]
[1737847189377,5.37105258,258.8,258.72,5.37105258]
[1737847189875,0.02508134,258.79,258.73,0.02877314]
[1737847190483,0.02508134,258.79,258.74,9.23645258]
[1737847190679,0.02508134,258.79,258.74,5.37105258]
[1737847190980,3.8649,258.78,258.73,0.02877314]
[1737847191282,0.02508134,258.79,258.73,0.02877314]
[1737847191475,3.865,258.77,258.73,0.02877314]
[1737847191974,3.8652,258.76,258.73,0.02877314]
[1737847192381,0.02508134,258.79,258.73,0.02877314]
[1737847192583,3.8653,258.75,258.73,0.02877314]
[1737847193484,5.37105258,258.78,258.73,0.02877314]
[1737847193785,3.8654,258.74,258.73,0.02877314]
[1737847194577,5.37105258,258.78,258.73,0.02877314]
[1737847195284,3.8654,258.74,258.73,0.02877314]
[1737847196485,9.23645258,258.74,258.73,7.314e-05]
[1737847200582,3.8666,258.66,258.6,5.37105258]
[1737847200785,9.23765258,258.66,258.58,5.37105258]
[1737847201679,9.23765258,258.66,258.59,3.89536686]
[1737847201979,0.02913004,258.65,258.62,5.37105258]
[1737847202186,9.23715258,258.7,258.62,5.37105258]
[1737847202382,0.0247379,258.66,258.62,5.37105258]
[1737847205783,3.8668,258.65,258.61,0.02878585]
[1737847206987,3.8671,258.63,258.61,0.02878585]
[1737847207192,5.39579048,258.66,258.61,0.02878585]
[1737847208091,3.8672,258.62,258.61,0.02878585]
[1737847209290,9.23825258,258.62,258.61,0.02878585]
[1737847211798,9.23805258,258.64,258.61,0.02878585]
[1737847212197,5.37105258,258.64,258.61,0.02878585]
[1737847212398,3.8671,258.63,258.61,0.02878585]
[1737847212700,5.39579048,258.66,258.61,0.02878585]
[1737847214093,9.26249048,258.66,258.61,0.02878585]
[1737847214300,5.39579048,258.66,258.61,0.02878585]
[1737847214699,3.8669,258.64,258.61,0.02878585]
[1737847215900,3.8671,258.63,258.61,0.02878585]
[1737847217500,5.39579048,258.66,258.61,0.02878585]
[1737847217703,0.0247379,258.66,258.61,0.02878585]
[1737847217997,0.0247379,258.66,258.62,5.37105258]
[1737847218901,0.0247379,258.66,258.62,9.23815258]
[1737847220103,0.0247379,258.66,258.65,3.8668]
[1737847221502,5.37105258,258.74,258.67,3.8663]
[1737847222501,3.8656,258.73,258.67,3.8663]
[1737847222697,3.89181682,258.73,258.68,0.0269693]
[1737847223503,3.8659,258.71,258.68,0.0269693]
[1737847223703,5.37105258,258.7,258.68,0.0269693]
[1737847223905,5.37105258,258.72,258.68,0.0269693]
[1737847224106,0.02621682,258.73,258.68,0.0269693]
[1737847224710,0.02621682,258.73,258.68,3.8931693]
[1737847225008,0.02621682,258.73,258.68,0.0269693]
[1737847225408,0.02621682,258.73,258.69,3.8661]
[1737847227709,9.23675258,258.72,258.68,0.0269693]
[1737847229313,9.23675258,258.72,258.68,3.8932693]
[1737847229510,0.02621682,258.73,258.68,3.8932693]
[1737847229812,0.02621682,258.73,258.71,3.8657]
[1737847230005,0.02621682,258.73,258.69,5.37105258]
[1737847230609,0.02621682,258.73,258.7,3.866]
[1737847230814,0.02621682,258.73,258.69,5.37105258]
[1737847231311,0.02621682,258.73,258.72,3.8657]
[1737847240016,5.37105258,258.84,258.71,5.37105258]
[1737847240220,5.37105258,258.88,258.8,5.37105258]
[1737847240426,5.37105258,258.9,258.85,3.8638]
[1737847240621,5.37105258,258.9,258.82,5.37105258]
[1737847241220,0.02868462,258.89,258.83,0.02834588]
[1737847242123,0.02868462,258.89,258.85,3.8636]
[1737847242525,0.02868462,258.89,258.87,5.37105258]
[1737847242822,0.02868462,258.89,258.87,9.23445258]
[1737847243819,5.37105258,258.96,258.87,5.37105258]
[1737847244017,5.37105258,258.98,258.89,5.37105258]
[1737847244423,3.862,258.97,258.91,3.8628]
[1737847244820,5.37105258,259.0,258.91,5.37105258]
[1737847245017,0.02596987,258.97,258.94,3.8624]
[1737847246326,0.02596987,258.97,258.95,3.8622]
[1737847246730,0.02596987,258.97,258.91,5.40001513]
[1737847246927,0.02596987,258.97,258.93,3.8625]
[1737847247121,0.02596987,258.97,258.93,5.37105258]
[1737847247329,0.02596987,258.97,258.95,5.37105258]
[1737847247926,0.02596987,258.97,258.93,5.37105258]
[1737847248425,0.02596987,258.97,258.91,5.40001513]
[1737847248622,3.88806987,258.97,258.91,0.02896255]
[1737847248831,5.37105258,258.93,258.91,0.02896255]
[1737847250127,9.23365258,258.93,258.91,0.02896255]
[1737847250931,3.8626,258.93,258.91,0.02896255]
[1737847251132,3.8624,258.95,258.91,0.02896255]
[1737847251629,3.8622,258.96,258.91,9.26281513]
[1737847251830,0.02596987,258.97,258.91,9.26281513]
[1737847252032,0.02596987,258.97,258.91,5.40001513]
[1737847252629,3.88796987,258.97,258.92,3.8627]
[1737847252927,3.88796987,258.97,258.91,5.40001513]
[1737847253831,3.88796987,258.97,258.91,9.26281513]
[1737847256634,0.02596987,258.97,258.91,9.26281513]
[1737847256827,3.8621,258.96,258.91,9.26281513]
[1737847259437,0.02596987,258.97,258.91,0.02896255]
[1737847260235,0.02596987,258.97,258.91,5.40001513]
[1737847260436,0.02596987,258.97,258.95,5.37105258]
[1737847261834,0.02596987,258.97,258.96,3.8621]
[1737847263633,3.8609,259.05,258.95,5.37105258]
[1737847263830,3.8609,259.05,259.0,5.37105258]
[1737847264035,5.37105258,259.09,259.0,5.37105258]
[1737847264433,3.8605,259.07,259.02,3.8612]
[1737847264633,3.8605,259.07,259.02,9.23225258]
[1737847264838,3.8605,259.07,259.02,9.25925746]
[1737847265229,3.8607,259.06,259.02,0.02700488]
[1737847265433,5.37105258,259.03,259.02,0.02700488]
[1737847267030,9.23215258,259.03,259.02,0.02700488]
[1737847267232,5.37105258,259.03,258.91,5.37105258]
[1737847267432,5.37105258,258.98,258.91,5.37105258]
[1737847267643,3.8624,258.95,258.89,5.37105258]
[1737847267838,3.8624,258.95,258.9,3.863]
[1737847268637,3.88940488,258.95,258.9,3.89229153]
[1737847269840,0.02700488,258.95,258.93,3.8625]
[1737847270139,0.02700488,258.95,258.94,5.37105258]
[1737847270335,5.37105258,259.06,258.94,5.37105258]
[1737847270534,3.8607,259.06,259.01,3.8614]
[1737847271541,3.8607,259.06,259.01,3.88677122]
[1737847273144,3.8605,259.08,259.01,3.88677122]
[1737847275437,8.37027046,259.12,259.01,3.88677122]
[1737847275638,3.8605,259.07,259.01,3.88677122]
[1737847276334,3.8607,259.06,259.01,0.02537122]
[1737847276537,8.37027046,259.12,259.01,0.02537122]
[1737847277038,3.8607,259.06,259.01,0.02537122]